bitfinex-derivatives/quotes_BTCF0:USTF0_20251229
["timestamp","ask_amount","ask_price","bid_price","bid_amount"]
[1767036940604,0.0114292,87590.0,87572.0,0.10876266]
[1767036941512,0.05724,87591.0,87572.0,0.09733126]
[1767036941703,0.0114293,87589.0,87546.0,0.07303574]
[1767036941905,0.17237472,87590.0,87554.0,0.0114338]
[1767036942099,0.0114295,87587.0,87554.0,0.0114338]
[1767036942301,0.0114312,87575.0,87554.0,0.0114338]
[1767036942496,0.0114332,87559.0,87549.0,0.05724]
[1767036942698,0.00017126,87563.0,87549.0,0.05724]
[1767036942913,0.00017126,87563.0,87549.0,0.0686744]
[1767036943614,0.02394592,87562.0,87549.0,0.05724]
[1767036943805,0.00017126,87563.0,87549.0,0.05724]
[1767036944005,0.02394591,87562.0,87549.0,0.05724]
[1767036944206,0.00017126,87563.0,87550.0,0.0114343]
[1767036945507,0.00017126,87563.0,87552.0,0.011434]
[1767036945811,0.00017126,87563.0,87549.0,0.0686745]
[1767036946008,0.00017126,87563.0,87549.0,0.05724]
[1767036946510,0.00017126,87563.0,87548.0,0.00228447]
[1767036946712,0.12107553,87562.0,87539.0,0.09716]
[1767036946910,0.0114334,87558.0,87536.0,0.0114362]
[1767036947110,0.0114336,87556.0,87536.0,0.0114362]
[1767036947307,0.011434,87553.0,87532.0,0.05724]
[1767036947615,0.08115553,87555.0,87530.0,0.09716]
[1767036947616,0.13250963,87552.0,87530.0,0.09716]
[1767036947912,0.1085941,87552.0,87532.0,0.00017126]
[1767036948111,0.0114344,87550.0,87532.0,0.00017126]
[1767036948312,0.0114352,87543.0,87532.0,0.00017126]
[1767036948508,0.09716,87552.0,87532.0,0.00012126]
[1767036948714,0.0114343,87550.0,87532.0,0.00012126]
[1767036950007,0.09716,87552.0,87532.0,0.00012126]
[1767036950201,0.0114356,87541.0,87519.0,0.1085983]
[1767036950403,0.05724,87541.0,87519.0,0.1098783]
[1767036951010,0.05724,87541.0,87521.0,0.011438]
[1767036951212,0.00017136,87540.0,87521.0,0.011438]
[1767036951518,0.00017136,87540.0,87521.0,0.011388]
[1767036952208,0.00017136,87540.0,87507.0,0.01158819]
[1767036952209,0.0114361,87537.0,87512.0,0.0114393]
[1767036953213,0.0114361,87537.0,87514.0,0.0114389]
[1767036953604,0.02285832,87537.0,87514.0,0.0114389]
[1767036955002,0.011437,87530.0,87511.0,0.09716]
[1767036955200,0.011437,87530.0,87507.0,0.01158819]
[1767036955201,0.0114375,87527.0,87507.0,0.00014829]
[1767036955914,0.0687169,87530.0,87507.0,0.00014829]
[1767036957614,0.05728,87530.0,87511.0,0.0114393]
[1767036960419,0.0114369,87531.0,87511.0,0.0114393]
[1767036960711,0.15448,87530.0,87509.0,0.0114396]
[1767036960918,0.165917,87530.0,87509.0,0.0114396]
[1767036961618,0.15448,87530.0,87509.0,0.0114396]
[1767036962605,0.15448,87530.0,87511.0,0.0114394]
[1767036964619,0.15448,87530.0,87512.0,0.0114392]
[1767036964817,0.0114371,87529.0,87507.0,0.00014829]
[1767036965010,0.0114374,87527.0,87507.0,0.01158819]
[1767036966320,0.0114374,87527.0,87509.0,0.0114396]
[1767036967314,0.165917,87530.0,87509.0,0.0114396]
[1767036967515,0.0114373,87528.0,87509.0,0.0114396]
[1767036967717,0.0114373,87528.0,87511.0,0.0114394]
[1767036967915,0.15448,87530.0,87511.0,0.0114394]
[1767036969121,0.0114372,87529.0,87507.0,0.00014829]
[1767036969628,0.0114372,87529.0,87511.0,0.0114394]
[1767036969824,0.15448,87530.0,87511.0,0.0114394]
[1767036970226,0.02382733,87529.0,87511.0,0.0114394]
[1767036970526,0.15448,87530.0,87513.0,0.0114391]
[1767036971222,0.08112608,87529.0,87517.0,0.0114386]
[1767036971423,0.05728,87528.0,87507.0,0.00014829]
[1767036971625,0.05728,87528.0,87514.0,0.011439]
[1767036971927,0.0114367,87532.0,87514.0,0.011439]
[1767036972229,0.0114367,87532.0,87507.0,0.00014829]
[1767036972230,0.0114372,87528.0,87507.0,0.00014829]
[1767036972525,0.02384694,87527.0,87512.0,0.0114392]
[1767036972723,0.02384694,87526.0,87512.0,0.0114392]
[1767036973025,0.05728,87529.0,87512.0,0.0114392]
[1767036973327,0.02385814,87528.0,87512.0,0.0114392]
[1767036973516,0.02385814,87527.0,87512.0,0.0114392]
[1767036973825,0.02385814,87526.0,87512.0,0.0114392]
[1767036974021,0.02385814,87525.0,87512.0,0.0114392]
[1767036974221,0.02385814,87524.0,87512.0,0.0114392]
[1767036974523,0.05728,87529.0,87512.0,0.0114392]
[1767036974825,0.02403698,87528.0,87512.0,0.0114392]
[1767036975023,0.02403698,87527.0,87512.0,0.0114392]
[1767036975219,0.02403698,87526.0,87512.0,0.0114392]
[1767036975425,0.02403698,87525.0,87512.0,0.0114392]
[1767036975622,0.02403698,87524.0,87512.0,0.0114392]
[1767036975821,0.02403698,87523.0,87512.0,0.0114392]
[1767036976021,0.02403698,87522.0,87514.0,0.011439]
[1767036976222,0.05728,87529.0,87507.0,0.00014829]
[1767036976223,8e-08,87521.0,87516.0,0.0114388]
[1767036976426,0.05728,87529.0,87513.0,0.0114391]
[1767036977828,0.1189068,87529.0,87513.0,0.0114391]
[1767036978128,0.0616268,87528.0,87513.0,0.0114391]
[1767036978330,0.0616268,87528.0,87507.0,0.00014829]
[1767036980125,0.0616268,87527.0,87507.0,0.00014829]
[1767036980428,0.0616268,87527.0,87513.0,0.0114391]
[1767036981229,0.1189068,87526.0,87515.0,0.0114389]
[1767036982126,0.0616268,87525.0,87507.0,0.00014829]
[1767036982631,0.0616268,87525.0,87514.0,0.0114389]
[1767036983630,0.0616268,87525.0,87516.0,0.0114387]
[1767036983829,0.0616268,87525.0,87507.0,0.00014829]
[1767036984030,0.0616268,87525.0,87515.0,0.0114389]
[1767036984230,0.05728,87526.0,87515.0,0.0114389]
[1767036984231,0.0616268,87524.0,87515.0,0.0114389]
[1767036985030,0.05728,87524.0,87520.0,0.0114382]
[1767036985234,0.05728,87524.0,87517.0,0.0114386]
[1767036985631,0.05728,87524.0,87508.0,0.0114397]
[1767036985934,0.05728,87528.0,87519.0,0.0114383]
[1767036986430,0.05728,87528.0,87510.0,0.17266495]
[1767036986630,0.05728,87528.0,87519.0,0.0114384]
[1767036989538,0.05728,87528.0,87507.0,0.00014829]
[1767036989732,0.0114378,87524.0,87510.0,0.0114395]
[1767036989929,0.0114374,87527.0,87512.0,0.0114393]
[1767036990234,0.05728,87528.0,87512.0,0.0114393]
[1767036990827,0.0687172,87528.0,87512.0,0.0114393]
[1767036991032,0.0114375,87526.0,87512.0,0.0114393]
[1767036992139,0.0114375,87526.0,87509.0,0.1086796]
[1767036992324,0.17266495,87520.0,87509.0,0.1086796]
[1767036992530,0.22994495,87520.0,87502.0,0.05728]
[1767036992735,0.17266495,87512.0,87499.0,0.09724]
[1767036993944,8.63e-05,87511.0,87499.0,0.09724]
[1767036994439,8.63e-05,87511.0,87496.0,0.0114414]
[1767036994634,0.17266495,87510.0,87496.0,0.0114414]
[1767036995139,0.17266495,87510.0,87491.0,0.15452]
[1767036995340,0.09724,87510.0,87485.0,0.07224]
[1767036995652,0.17266495,87500.0,87485.0,0.04724]
[1767036995825,0.02383144,87499.0,87485.0,0.04724]
[1767036996137,0.02383144,87498.0,87485.0,0.04724]
[1767036996328,0.02383144,87497.0,87470.0,0.17266495]
[1767036996524,0.17266495,87480.0,87469.0,0.0114448]
[1767036996737,0.17266495,87480.0,87450.0,0.17266495]
[1767036996738,0.00010928,87479.0,87457.0,0.15452]
[1767036997330,0.00010928,87479.0,87463.0,0.0114456]
[1767036997745,0.17266495,87473.0,87463.0,0.0114456]
[1767036997940,0.05742928,87479.0,87460.0,0.0114461]
[1767036998144,0.03522444,87478.0,87460.0,0.0114461]
[1767036998339,0.0114438,87478.0,87460.0,0.0114461]
[1767036998539,0.05742928,87479.0,87460.0,0.0114461]
[1767037000447,0.0114438,87478.0,87457.0,0.15452]
[1767037000648,0.05742928,87479.0,87462.0,0.0114457]
[1767037000945,0.05742928,87479.0,87460.0,0.17266495]
[1767037001144,0.00010928,87479.0,87465.0,0.0114453]
[1767037001334,0.00010928,87479.0,87467.0,0.0114451]
[1767037001531,0.05732,87478.0,87467.0,0.0114451]
[1767037001736,0.05732,87478.0,87464.0,0.0114456]
[1767037003930,0.05732,87478.0,87460.0,0.17266495]
[1767037004136,0.05732,87478.0,87466.0,0.0114452]
[1767037004441,0.05732,87478.0,87462.0,0.0114457]
[1767037004744,0.05732,87478.0,87464.0,0.0114455]
[1767037005141,0.05732,87478.0,87466.0,0.0114452]
[1767037006244,0.05732,87478.0,87468.0,0.18410995]
[1767037006850,0.05742928,87479.0,87468.0,0.011445]
[1767037008744,0.00010928,87479.0,87460.0,0.17266495]
[1767037008942,0.05742928,87479.0,87462.0,0.0114458]
[1767037009338,0.0114437,87478.0,87461.0,0.0114459]
[1767037009944,0.05742928,87479.0,87461.0,0.0114459]
[1767037010254,0.0114438,87478.0,87460.0,0.011446]
[1767037010549,0.17266495,87470.0,87457.0,0.15452]
[1767037010850,0.0114446,87472.0,87457.0,0.15452]
[1767037010851,0.0687646,87472.0,87457.0,0.08180683]
[1767037011153,0.17266495,87470.0,87453.0,0.0114469]
[1767037011336,0.05732,87472.0,87453.0,0.0114469]
[1767037011541,0.05732,87472.0,87455.0,0.0114466]
[1767037012142,0.05732,87472.0,87420.0,0.02762013]
[1767037012143,0.17266495,87465.0,87420.0,0.02762013]
[1767037012347,0.00017146,87455.0,87430.0,0.17266495]
[1767037012552,0.00017146,87455.0,87429.0,0.15464]
[1767037012943,0.00017146,87455.0,87430.0,0.17266495]
[1767037013152,0.00017146,87455.0,87438.0,0.011449]
[1767037013348,0.00017146,87455.0,87440.0,0.0114486]
[1767037013852,0.00017146,87455.0,87434.0,0.0114494]
[1767037014353,0.00017146,87455.0,87437.0,0.0114491]
[1767037016540,0.00017146,87455.0,87434.0,0.0114495]
[1767037016944,0.18411245,87450.0,87420.0,0.02762013]
[1767037017246,0.0114478,87447.0,87426.0,0.0114505]
[1767037018956,0.0114478,87447.0,87424.0,0.05736]
[1767037019448,0.0114481,87445.0,87424.0,0.05736]
[1767037020153,0.0114481,87445.0,87425.0,0.0114506]
[1767037020649,0.15477571,87449.0,87424.0,0.05736]
[1767037020851,0.00013571,87449.0,87440.0,0.0114487]
[1767037021052,0.05736,87450.0,87441.0,0.0114486]
[1767037021349,0.00017146,87455.0,87439.0,0.17266495]
[1767037021552,0.06426811,87463.0,87434.0,0.05736]
[1767037021553,0.05736,87459.0,87446.0,0.0114479]
[1767037021749,0.05736,87462.0,87450.0,0.17266495]
[1767037021944,8.799e-05,87461.0,87450.0,0.17266495]
[1767037022144,8.799e-05,87461.0,87440.0,0.18411365]
[1767037022145,0.0114461,87460.0,87440.0,0.18411365]
[1767037022353,0.02368173,87459.0,87440.0,0.0114487]
[1767037022555,0.0238525,87458.0,87441.0,0.00017146]
[1767037022852,0.00017146,87458.0,87441.0,0.00017146]
[1767037023249,0.02369281,87457.0,87441.0,0.00017146]
[1767037023556,0.00017146,87458.0,87441.0,0.00017146]
[1767037023854,0.02369152,87457.0,87441.0,0.00017146]
[1767037024054,0.00017146,87458.0,87441.0,0.00017146]
[1767037024258,0.02369155,87457.0,87441.0,0.00017146]
[1767037024453,0.02369155,87456.0,87441.0,0.00017146]
[1767037024657,0.00017146,87458.0,87447.0,0.17266495]
[1767037024853,0.00017146,87458.0,87441.0,0.00017146]
[1767037026151,0.00017146,87458.0,87447.0,0.0114477]
[1767037026347,0.02373296,87457.0,87447.0,0.0114477]
[1767037026554,0.00017146,87458.0,87447.0,0.0114477]
[1767037026756,0.02373383,87457.0,87447.0,0.0114477]
[1767037027052,0.00017146,87458.0,87447.0,0.0114477]
[1767037027256,0.02373381,87457.0,87447.0,0.0114477]
[1767037027455,0.02373381,87456.0,87447.0,0.0114477]
[1767037027652,0.00017146,87458.0,87447.0,0.0114477]
[1767037027959,0.02373802,87457.0,87447.0,0.0114477]
[1767037028159,0.02373802,87456.0,87447.0,0.0114477]
[1767037028359,0.02373802,87455.0,87447.0,0.0114477]
[1767037028559,0.02373802,87454.0,87447.0,0.0114477]
[1767037028859,0.02373802,87453.0,87442.0,0.0398082]
[1767037029061,0.02373802,87452.0,87445.0,0.011448]
[1767037029256,0.02373802,87451.0,87445.0,0.011448]
[1767037029453,2e-08,87450.0,87442.0,0.0398082]
[1767037029652,0.00017146,87458.0,87442.0,0.0398082]
[1767037030557,0.00017146,87458.0,87446.0,0.0114478]
[1767037030856,0.00017146,87458.0,87448.0,0.17266495]
[1767037032561,0.00017146,87458.0,87446.0,0.0114478]
[1767037032763,0.00017146,87458.0,87448.0,0.17266495]
[1767037033357,0.0114417,87494.0,87459.0,0.0114462]
[1767037033358,0.09732,87475.0,87459.0,0.0114462]
[1767037033556,0.05736,87476.0,87460.0,0.17266495]
[1767037034265,6.997e-05,87475.0,87460.0,0.17266495]
[1767037034568,1.997e-05,87475.0,87460.0,0.17266495]
[1767037036064,1.997e-05,87475.0,87460.0,0.14866495]
[1767037036564,1.997e-05,87475.0,87459.0,0.00017146]
[1767037037468,0.0114443,87474.0,87459.0,0.00012146]
[1767037037869,1.997e-05,87475.0,87459.0,0.00012146]
[1767037039066,0.0114446,87472.0,87459.0,0.00012146]
[1767037039569,1.997e-05,87475.0,87459.0,0.00012146]
[1767037039865,0.0114469,87454.0,87446.0,0.05736]
[1767037040257,0.0114472,87452.0,87446.0,0.05736]
[1767037040674,0.0114472,87452.0,87440.0,0.00017146]
[1767037040969,0.0114472,87452.0,87441.0,0.05736]
[1767037041356,0.0114468,87455.0,87441.0,0.05736]
[1767037042570,0.00017146,87458.0,87440.0,0.00017146]
[1767037042762,0.00017146,87458.0,87428.0,0.01373781]
[1767037042763,0.09728,87457.0,87428.0,0.01373781]
[1767037042962,0.05736,87456.0,87429.0,0.15464]
[1767037043172,0.0114474,87451.0,87430.0,0.01145]
[1767037043370,0.0114472,87452.0,87430.0,0.01145]
[1767037045375,0.011447,87454.0,87434.0,0.0114495]
[1767037045674,0.0114472,87452.0,87431.0,0.0114498]
[1767037045868,0.05736,87456.0,87429.0,0.15464]
[1767037046770,0.0114481,87445.0,87429.0,0.15464]
[1767037046965,0.0114481,87445.0,87429.0,0.05736]
[1767037047565,0.0114477,87448.0,87429.0,0.05736]
[1767037048865,0.0114472,87452.0,87430.0,0.01145]
[1767037049671,0.05736,87456.0,87429.0,0.05736]
[1767037050869,0.05736,87455.0,87438.0,0.0114489]
[1767037051069,0.15468,87455.0,87440.0,0.0114487]
[1767037051264,0.00017146,87458.0,87432.0,0.09732]
[1767037051483,0.00017146,87458.0,87446.0,0.0114478]
[1767037051664,0.00017146,87458.0,87444.0,0.0114481]
[1767037053474,0.00017146,87458.0,87446.0,0.0114479]
[1767037053673,0.15468,87464.0,87449.0,0.0114474]
[1767037056785,0.15468,87464.0,87451.0,0.0114472]
[1767037057682,0.15468,87464.0,87449.0,0.0114475]
[1767037058187,0.15468,87464.0,87443.0,0.09193896]
[1767037058378,0.15468,87464.0,87451.0,0.0114472]
[1767037058574,0.05753146,87465.0,87444.0,0.0114482]
[1767037058775,0.05736,87472.0,87461.0,0.0114459]
[1767037059283,0.05736,87472.0,87463.0,0.0114456]
[1767037060174,0.05736,87472.0,87460.0,0.011446]
[1767037060798,0.05736,87472.0,87459.0,0.00017146]
[1767037063484,0.0238341,87471.0,87459.0,0.00017146]
[1767037063683,0.0238341,87470.0,87459.0,0.00017146]
[1767037063885,0.0238341,87469.0,87459.0,0.00017146]
[1767037064085,0.0238341,87468.0,87459.0,0.00017146]
[1767037064286,0.0238341,87467.0,87459.0,0.00017146]
[1767037064486,0.0238341,87466.0,87459.0,0.00017146]
[1767037064688,0.0238341,87465.0,87459.0,0.00017146]
[1767037064886,0.0238341,87464.0,87459.0,0.00017146]
[1767037065087,0.0238341,87463.0,87459.0,0.00017146]
[1767037065385,0.0238341,87462.0,87450.0,0.05197846]
[1767037065689,0.05736,87472.0,87450.0,0.05197846]
[1767037065888,0.02383754,87471.0,87450.0,0.05197846]
[1767037066080,0.05736,87472.0,87450.0,0.05197846]
[1767037066081,0.02383754,87470.0,87450.0,0.05197846]
[1767037066282,0.02383754,87469.0,87453.0,0.011447]
[1767037066482,0.02383754,87468.0,87450.0,0.05197846]
[1767037066676,0.02383754,87467.0,87457.0,0.0114464]
[1767037066876,0.00017146,87476.0,87464.0,0.0114455]
[1767037067087,0.00017146,87476.0,87461.0,0.0114459]
[1767037068690,0.00017146,87476.0,87463.0,0.0114457]
[1767037072997,0.00017146,87476.0,87465.0,0.0114454]
[1767037073197,0.00017146,87476.0,87453.0,0.0927254]
[1767037073792,0.00017146,87476.0,87462.0,0.0114458]
[1767037075601,0.00017146,87476.0,87464.0,0.0114455]
[1767037076792,0.00017146,87476.0,87453.0,0.0927254]
[1767037077198,0.00017146,87476.0,87454.0,0.0114468]
[1767037077793,0.00017146,87476.0,87453.0,0.0927254]
[1767037077794,0.06167946,87476.0,87432.0,0.04113402]
[1767037077994,0.0114453,87467.0,87446.0,0.0114479]
[1767037078209,0.0114457,87464.0,87446.0,0.09728]
[1767037078710,0.05736,87466.0,87446.0,0.1087279]
[1767037079204,0.0114458,87463.0,87446.0,0.09728]
[1767037080305,0.0114462,87459.0,87446.0,0.09728]
[1767037081108,0.0114461,87460.0,87446.0,0.09728]
[1767037081307,0.011446,87461.0,87446.0,0.09728]
[1767037081611,0.0729535,87465.0,87446.0,0.09728]
[1767037082203,0.0729535,87465.0,87447.0,0.0114478]
[1767037082912,0.061508,87465.0,87449.0,0.0114475]
[1767037083515,0.05736,87466.0,87452.0,0.0114471]
[1767037085220,0.05736,87466.0,87449.0,0.0114475]
[1767037085524,0.05736,87466.0,87446.0,0.09728]
[1767037085705,0.05736,87466.0,87454.0,0.0114468]
[1767037086506,0.05736,87466.0,87446.0,0.09728]
[1767037086507,0.05736,87466.0,87450.0,0.0114474]
[1767037086712,0.0114455,87465.0,87434.0,0.0114495]
[1767037086909,0.00017146,87458.0,87442.0,0.0114484]
[1767037087714,0.00017146,87458.0,87441.0,0.0114485]
[1767037088017,0.00017146,87458.0,87443.0,0.0688083]
[1767037088317,0.00017146,87458.0,87444.0,0.09728]
[1767037089518,0.00017146,87458.0,87447.0,0.0114477]
[1767037089818,0.00017146,87458.0,87449.0,0.0114475]
[1767037090019,1.46e-06,87458.0,87449.0,0.0114475]
[1767037091821,1.46e-06,87458.0,87445.0,0.01161946]
[1767037092806,1.46e-06,87458.0,87447.0,0.0114477]
[1767037093324,1.46e-06,87458.0,87445.0,0.00017146]
[1767037095222,1.46e-06,87458.0,87448.0,0.0114476]
[1767037095616,1.46e-06,87458.0,87450.0,0.0114474]
[1767037095914,1.46e-06,87458.0,87446.0,0.0114479]
[1767037096116,1.46e-06,87458.0,87448.0,0.0114476]
[1767037096522,1.46e-06,87458.0,87448.0,0.18433317]
[1767037098219,1.46e-06,87458.0,87448.0,0.0114476]
[1767037099224,1.46e-06,87458.0,87450.0,0.0114474]
[1767037100123,1.46e-06,87458.0,87445.0,0.00017146]
[1767037100623,1.46e-06,87458.0,87450.0,0.0114474]
[1767037100822,1.46e-06,87458.0,87448.0,0.17288557]
[1767037101024,1.46e-06,87458.0,87451.0,0.0114472]
[1767037101216,1.46e-06,87458.0,87448.0,0.18433317]
[1767037101725,1.46e-06,87458.0,87450.0,0.0114474]
[1767037104621,1.46e-06,87458.0,87445.0,0.00017146]
[1767037104823,1.46e-06,87458.0,87448.0,0.0114476]
[1767037105123,1.46e-06,87458.0,87450.0,0.0114474]
[1767037109129,1.46e-06,87458.0,87447.0,0.0114478]
[1767037109330,1.46e-06,87458.0,87445.0,0.00017146]
[1767037109927,1.46e-06,87458.0,87448.0,0.0114476]
[1767037112428,1.46e-06,87458.0,87446.0,0.0114479]
[1767037113133,1.46e-06,87458.0,87445.0,0.00017146]
[1767037113932,1.46e-06,87458.0,87446.0,0.0114479]
[1767037115530,0.17288557,87456.0,87428.0,0.00228761]
[1767037115831,0.17288557,87450.0,87433.0,0.0114496]
[1767037116133,0.02411527,87449.0,87433.0,0.0114496]
[1767037116432,0.02411527,87448.0,87433.0,0.0114496]
[1767037116625,0.1546,87457.0,87432.0,0.0114497]
[1767037116626,0.02411527,87447.0,87432.0,0.0114497]
[1767037116831,0.02411527,87446.0,87432.0,0.0114497]
[1767037117031,0.02411527,87445.0,87429.0,0.05732]
[1767037117326,0.0114476,87449.0,87429.0,0.05732]
[1767037117327,0.02411527,87444.0,87429.0,0.05732]
[1767037117532,0.02411527,87443.0,87430.0,0.17288557]
[1767037117729,0.02411527,87442.0,87429.0,0.05732]
[1767037117931,0.02411527,87441.0,87429.0,0.05732]
[1767037118128,0.02411527,87440.0,87429.0,0.05732]
[1767037118322,0.02411527,87439.0,87429.0,0.05732]
[1767037118526,0.0114476,87449.0,87429.0,0.05732]
[1767037118730,0.02408942,87448.0,87429.0,0.05732]
[1767037119031,0.02408942,87447.0,87429.0,0.05732]
[1767037119225,0.02408942,87446.0,87429.0,0.05732]
[1767037119427,0.02408942,87445.0,87429.0,0.05732]
[1767037119631,0.02408942,87444.0,87430.0,0.17288557]
[1767037119824,0.02408942,87443.0,87429.0,0.05732]
[1767037120024,0.02408942,87442.0,87429.0,0.05732]
[1767037120223,0.02408942,87441.0,87429.0,0.05732]
[1767037120423,0.02408942,87440.0,87429.0,0.05732]
[1767037120627,0.02408942,87439.0,87429.0,0.05732]
[1767037120925,0.0114476,87449.0,87429.0,0.05732]
[1767037121126,0.02407947,87448.0,87429.0,0.05732]
[1767037121325,0.02407947,87447.0,87430.0,0.17288557]
[1767037121526,0.02407947,87446.0,87430.0,0.17288557]
[1767037121725,0.02407947,87445.0,87430.0,0.18433557]
[1767037121925,0.02407947,87444.0,87430.0,0.18433557]
[1767037122125,0.02407947,87443.0,87430.0,0.18433557]
[1767037122329,0.0114472,87452.0,87430.0,0.18433557]
[1767037122833,0.0114472,87452.0,87432.0,0.0114497]
[1767037123931,0.0114472,87452.0,87430.0,0.17288557]
[1767037125235,0.0114472,87452.0,87430.0,0.18433547]
[1767037126135,0.0114472,87452.0,87432.0,0.0114497]
[1767037127033,0.061508,87453.0,87432.0,0.0114497]
[1767037127337,0.0114472,87452.0,87432.0,0.0114497]
[1767037127831,0.1546,87457.0,87430.0,0.17288557]
[1767037127832,0.17288557,87450.0,87430.0,0.17288557]
[1767037128138,0.05732,87449.0,87431.0,0.0114499]
[1767037130938,0.05732,87449.0,87430.0,0.17288557]
[1767037132037,0.05732,87449.0,87430.0,0.18433557]
[1767037133338,0.0114477,87448.0,87430.0,0.18433557]
[1767037133839,0.0114482,87445.0,87429.0,0.05732]
[1767037134035,0.0114478,87448.0,87429.0,0.05732]
[1767037134539,0.0242364,87447.0,87429.0,0.05732]
[1767037134727,0.0356844,87446.0,87430.0,0.05732]
[1767037134928,0.0242364,87445.0,87430.0,0.05732]
[1767037135633,0.0242364,87444.0,87430.0,0.05732]
[1767037135834,0.0242364,87443.0,87430.0,0.05732]
[1767037136036,0.0242364,87442.0,87430.0,0.05732]
[1767037136236,0.0242364,87441.0,87430.0,0.05732]
[1767037136426,0.0114478,87447.0,87430.0,0.05732]
[1767037136628,0.02421883,87446.0,87430.0,0.05732]
[1767037136832,0.02421883,87445.0,87430.0,0.05732]
[1767037137030,0.02421883,87444.0,87430.0,0.05732]
[1767037137232,3e-08,87443.0,87430.0,0.23020557]
[1767037137428,0.06215637,87477.0,87434.0,0.0114494]
[1767037137726,0.0114444,87473.0,87453.0,0.011447]
[1767037138338,0.0114445,87472.0,87420.0,0.02762013]
[1767037138635,0.17288557,87450.0,87430.0,0.17288557]
[1767037138839,0.05736,87453.0,87430.0,0.17288557]
[1767037140741,0.05736,87453.0,87431.0,0.05736]
[1767037140933,0.17288557,87450.0,87431.0,0.05736]
[1767037141635,0.05736,87453.0,87431.0,0.05736]
[1767037141833,0.05736,87453.0,87440.0,0.17288557]
[1767037142643,0.00017146,87459.0,87440.0,0.17288557]
[1767037142942,0.05736,87458.0,87440.0,0.17288557]
[1767037144444,0.05736,87458.0,87439.0,0.05736]
[1767037144745,0.05736,87458.0,87440.0,0.17288557]
[1767037145048,0.05736,87463.0,87448.0,0.17288557]
[1767037145339,0.05736,87463.0,87448.0,0.14788557]
[1767037146434,0.00017146,87464.0,87448.0,0.20524557]
[1767037146634,0.00017146,87464.0,87448.0,0.05736]
[1767037146831,0.17288557,87460.0,87448.0,0.05736]
[1767037147235,0.17288557,87460.0,87447.0,0.00017146]
[1767037147841,0.18433177,87460.0,87447.0,0.00017146]
[1767037148745,0.17288557,87460.0,87447.0,0.00017146]
[1767037149458,0.02388999,87459.0,87447.0,0.00017146]
[1767037149648,0.02388999,87458.0,87447.0,0.00017146]
[1767037149948,0.02388999,87457.0,87447.0,0.00017146]
[1767037150150,0.02388999,87456.0,87447.0,0.00017146]
[1767037150348,0.02388999,87455.0,87447.0,0.00017146]
[1767037150549,0.02388999,87454.0,87447.0,0.00017146]
[1767037150749,0.00017146,87464.0,87447.0,0.00017146]
[1767037151048,0.02388846,87463.0,87447.0,0.00017146]
[1767037151252,0.02388846,87462.0,87447.0,0.00017146]
[1767037151556,0.02388846,87461.0,87447.0,0.00017146]
[1767037151852,0.05736,87462.0,87450.0,0.17288557]
[1767037152257,0.05736,87462.0,87450.0,0.14488557]
[1767037153948,0.05736,87462.0,87447.0,0.00017146]
[1767037154152,0.0688059,87462.0,87447.0,0.00017146]
[1767037154650,0.05736,87462.0,87447.0,0.00017146]
[1767037156548,0.05736,87462.0,87448.0,0.0114476]
[1767037157555,0.05736,87462.0,87447.0,0.00017146]
[1767037159255,0.00017146,87464.0,87447.0,0.00017146]
[1767037159449,0.05753146,87464.0,87446.0,0.04097936]
[1767037160057,0.05753146,87464.0,87448.0,0.0114476]
[1767037160558,0.06897706,87464.0,87448.0,0.0114476]
[1767037161056,0.00017146,87464.0,87446.0,0.02953146]
[1767037161451,0.00017146,87464.0,87450.0,0.0114474]
[1767037161657,0.00017146,87464.0,87447.0,0.0114477]
[1767037162351,0.00017146,87464.0,87446.0,0.02953146]
[1767037162551,0.0114462,87460.0,87447.0,0.05736]
[1767037162755,0.00017146,87464.0,87447.0,0.05736]
[1767037163557,0.011446,87461.0,87447.0,0.05736]
[1767037166266,0.00017146,87464.0,87447.0,0.05736]
[1767037166457,0.00017146,87464.0,87447.0,0.03736]
[1767037167157,0.0114461,87461.0,87447.0,0.03736]
[1767037167869,0.0114458,87463.0,87447.0,0.03736]
[1767037168065,0.011446,87461.0,87447.0,0.03736]
[1767037168563,0.01161716,87464.0,87447.0,0.03736]
[1767037169261,0.00017146,87464.0,87447.0,0.0114478]
[1767037170771,0.00017146,87464.0,87452.0,0.0114471]
[1767037171070,0.1661248,87471.0,87452.0,0.0114471]
[1767037171270,0.11894697,87471.0,87452.0,0.0114471]
[1767037171958,0.11894697,87471.0,87454.0,0.0114468]
[1767037172162,0.05753146,87471.0,87454.0,0.0114468]
[1767037172367,0.21626697,87480.0,87454.0,0.09732]
[1767037172571,0.0114437,87479.0,87458.0,0.0114462]
[1767037173370,0.00017146,87477.0,87458.0,0.0114462]
[1767037173671,0.00017146,87477.0,87454.0,0.0917662]
[1767037174263,0.00017146,87477.0,87458.0,0.0114462]
[1767037174764,0.00017146,87477.0,87457.0,0.0114465]
[1767037175168,0.0114441,87476.0,87457.0,0.0114465]
[1767037175576,0.0114443,87474.0,87454.0,0.1032131]
[1767037176480,0.01161536,87477.0,87456.0,0.0114465]
[1767037176665,0.01161536,87477.0,87458.0,0.0114463]
[1767037176666,0.00017146,87477.0,87458.0,0.0114463]
[1767037177775,0.00017146,87477.0,87454.0,0.0917662]
[1767037178272,0.01161546,87477.0,87458.0,0.0114463]
[1767037179175,0.00017146,87477.0,87454.0,0.0917662]
[1767037179877,0.00017146,87477.0,87461.0,0.0114459]
[1767037180175,0.00017146,87477.0,87463.0,0.0114456]
[1767037180365,0.00017146,87477.0,87465.0,0.0114454]
[1767037180567,0.05732,87485.0,87462.0,0.05732]
[1767037180770,0.05732,87485.0,87462.0,0.03032]
[1767037180967,0.05732,87485.0,87463.0,0.01784367]
[1767037181175,0.05732,87485.0,87464.0,0.01784367]
[1767037181362,0.05732,87485.0,87469.0,0.0114448]
[1767037181568,0.05727,87485.0,87469.0,0.0114448]
[1767037182272,0.05727,87485.0,87471.0,0.0114446]
[1767037182575,0.05727,87485.0,87471.0,0.0113946]
[1767037183374,0.05727,87485.0,87468.0,0.00017146]
[1767037183574,0.05727,87485.0,87469.0,0.01783422]
[1767037183779,0.05727,87485.0,87468.0,0.00017146]
[1767037184576,0.05727,87485.0,87471.0,0.0114445]
[1767037184969,0.05727,87485.0,87468.0,0.01161646]
[1767037185276,0.05727,87485.0,87470.0,0.0114447]
[1767037186180,0.05727,87485.0,87472.0,0.0114445]
[1767037186780,0.05727,87485.0,87469.0,0.0114448]
[1767037186989,0.05727,87485.0,87471.0,0.0114446]
[1767037187380,0.05727,87485.0,87468.0,0.01161646]
[1767037187982,0.05727,87485.0,87470.0,0.0114447]
[1767037188482,0.05727,87485.0,87472.0,0.0114445]
[1767037189174,0.05727,87485.0,87470.0,0.00017146]
[1767037189175,0.00017146,87486.0,87473.0,0.0114443]
[1767037189682,0.00017146,87486.0,87470.0,0.01161616]
[1767037190284,0.00017146,87486.0,87472.0,0.0114445]